fUSD/lending_fUSD_20240423
["ID","MTS","AMOUNT","RATE_DAILY","PERIOD"]
[323280988,1713868240829,-500.0,0.00011377,2]
[323280990,1713868240839,-5000.0,0.00011377,2]
[323280993,1713868240848,-500.0,0.00011377,2]
[323280994,1713868240857,-500.0,0.00011377,2]
[323280997,1713868240868,-500.0,0.00011377,2]
[323280998,1713868240877,-1311.66,0.00011377,2]
[323281000,1713868240886,-1056.61,0.00011377,2]
[323281003,1713868240895,-500.0,0.00011377,2]
[323281004,1713868240904,-583.82417728,0.00011377,2]
[323281005,1713868240913,-546.07273924,0.00011377,2]
[323281006,1713868240921,-500.0,0.00011377,2]
[323281007,1713868240930,-500.0,0.00011377,2]
[323281008,1713868240941,-505.55,0.00011377,2]
[323281009,1713868240950,-504.80855703,0.00011377,2]
[323281010,1713868240958,-500.0,0.00011377,2]
[323281011,1713868240967,-500.0,0.00011377,2]
[323281012,1713868240976,-500.0,0.00011377,2]
[323281013,1713868240985,-505.62263145,0.00011377,2]
[323281014,1713868240993,-500.0,0.00011377,2]
[323281015,1713868241002,-211.42,0.00011377,2]
[323281016,1713868241011,-500.0,0.00011377,2]
[323281017,1713868241020,-207.91,0.00011377,2]
[323281018,1713868241029,-503.15753355,0.00011377,2]
[323281019,1713868241038,-628.93242781,0.00011377,2]
[323281020,1713868241048,-993.51,0.00011377,2]
[323281021,1713868241057,-508.29008182,0.00011377,2]
[323281022,1713868241067,-500.0,0.00011377,2]
[323281023,1713868241076,-216.77981573,0.00011377,2]
[323281024,1713868241086,-196.65,0.00011377,2]
[323281025,1713868241095,-500.0,0.00011377,2]
[323281026,1713868241104,-578.94640226,0.00011377,2]
[323281027,1713868241113,-1071.04,0.00011377,2]
[323281028,1713868241123,-500.0,0.00011377,2]
[323281029,1713868241132,-637.31365885,0.00011377,2]
[323281030,1713868241142,-505.88183437,0.00011377,2]
[323281031,1713868241152,-500.0,0.00011377,2]
[323281032,1713868241162,-500.0,0.00011377,2]
[323281033,1713868241170,-500.0,0.00011377,2]
[323281034,1713868241180,-1127.55,0.00011377,2]
[323281036,1713868241190,-500.0,0.00011377,2]
[323281037,1713868241200,-500.0,0.00011377,2]
[323281038,1713868241210,-500.0,0.00011377,2]
[323281039,1713868241219,-409.95577367,0.00011377,2]
[323281040,1713868241229,-500.0,0.00011377,2]
[323281041,1713868241238,-500.0,0.00011377,2]
[323281042,1713868241247,-500.0,0.00011377,2]
[323281043,1713868241256,-500.0,0.00011377,2]
[323281044,1713868241265,-500.0,0.00011377,2]
[323281045,1713868241274,-500.0,0.00011377,2]
[323281046,1713868241283,-500.0,0.00011377,2]
[323281047,1713868241292,-504.12784133,0.00011377,2]
[323281048,1713868241301,-500.0,0.00011377,2]
[323281049,1713868241311,-500.0,0.00011377,2]
[323281050,1713868241320,-471.03775123,0.00011377,2]
[323281051,1713868241329,-500.0,0.00011377,2]
[323281052,1713868241338,-507.06318018,0.00011377,2]
[323281053,1713868241347,-500.0,0.00011377,2]
[323281054,1713868241357,-500.0,0.00011377,2]
[323281055,1713868241368,-502.62017985,0.00011377,2]
[323281056,1713868241377,-500.0,0.00011377,2]
[323281057,1713868241386,-589.26536761,0.00011377,2]
[323281058,1713868241395,-500.0,0.00011377,2]
[323281059,1713868241404,-500.0,0.00011377,2]
[323281060,1713868241413,-384.54323858,0.00011377,2]
[323281061,1713868241422,-500.0,0.00011377,2]
[323281062,1713868241433,-500.0,0.00011377,2]
[323281063,1713868241442,-500.0,0.00011377,2]
[323281064,1713868241451,-500.0,0.00011377,2]
[323281065,1713868241461,-500.0,0.00011377,2]
[323281066,1713868241470,-500.0,0.00011377,2]
[323281067,1713868241479,-500.0,0.00011377,2]
[323281068,1713868241489,-165.31206238,0.00011377,2]
[323281069,1713868241498,-500.0,0.00011377,2]
[323281070,1713868241507,-500.0,0.00011377,2]
[323281071,1713868241516,-500.0,0.00011377,2]
[323281072,1713868241525,-500.0,0.00011377,2]
[323281073,1713868241535,-907.88,0.00011377,2]
[323281074,1713868241544,-500.0,0.00011377,2]
[323281075,1713868241556,-500.0,0.00011377,2]
[323281076,1713868241566,-500.0,0.00011377,2]
[323281077,1713868241576,-500.0,0.00011377,2]
[323281078,1713868241586,-500.0,0.00011377,2]
[323281079,1713868241595,-500.0,0.00011377,2]
[323281080,1713868241604,-500.0,0.00011377,2]
[323281081,1713868241613,-500.0,0.00011377,2]
[323281082,1713868241622,-500.0,0.00011377,2]
[323281083,1713868241633,-500.0,0.00011377,2]
[323281084,1713868241642,-500.0,0.00011377,2]
[323281085,1713868241651,-500.0,0.00011377,2]
[323281086,1713868241661,-500.0,0.00011377,2]
[323281087,1713868241670,-503.74349775,0.00011377,2]
[323281088,1713868241679,-500.0,0.00011377,2]
[323281089,1713868241689,-500.0,0.00011377,2]
[323281090,1713868241699,-500.0,0.00011377,2]
[323281091,1713868241708,-580.09,0.00011377,2]
[323281092,1713868241718,-500.0,0.00011377,2]
[323281093,1713868241727,-500.0,0.00011377,2]
[323281094,1713868241736,-500.0,0.00011377,2]
[323281095,1713868241745,-189.74885703,0.00011377,2]
[323281143,1713868254055,836.92,0.0001061,2]
[323281144,1713868272765,3180.18036638,0.00010806,2]
[323281145,1713868274466,999.51691893,0.00010806,2]
[323281146,1713868274765,1487.40290101,0.00010806,7]
[323281147,1713868318584,486.57,8.654e-05,2]
[323281148,1713868318941,486.57,0.00010918,2]
[323281149,1713868378788,151.2709204,0.00010863,2]
[323281150,1713868430268,167.8,0.00010491,2]
[323281151,1713868553461,553.81,0.00010435,2]
[323281152,1713868739968,557.61,0.00010452,2]
[323281156,1713868754034,164.44,0.00010538,2]
[323281157,1713868754248,164.44,0.00010812,2]
[323281158,1713868754813,164.44,0.00011087,2]
[323281159,1713868770677,19490.2739,0.00011176,2]
[323281160,1713868787830,402.4654,0.00011176,2]
[323281161,1713868809941,437.91,8.534e-05,2]
[323281162,1713868810303,437.91,0.00010798,2]
[323281163,1713868832647,182.01,0.0001043,2]
[323281164,1713869031439,1000.0,0.00011176,2]
[323281165,1713869052175,556.95,0.00010409,2]
[323281168,1713869225468,371.4,0.00010412,2]
[323281200,1713869249340,500.0,0.000109,3]
[323281201,1713869314268,394.11,8.443e-05,2]
[323281202,1713869314580,394.11,0.00010707,2]
[323281298,1713869432300,-267.95,0.00011205,2]
[323281299,1713869432357,-519.22982893,0.00011205,2]
[323281300,1713869432366,-2321.74176097,0.00011206,2]
[323281301,1713869432376,-4583.44785109,0.00011207,2]
[323281302,1713869432385,-532.89332388,0.00011212,2]
[323281303,1713869432394,-150.0,0.00011216,2]
[323281304,1713869432404,-150.0,0.0001126,2]
[323281305,1713869432413,-181.19026712,0.00011263,2]
[323281306,1713869432422,-342.06207086,0.00011263,2]
[323281307,1713869432431,-431.46039117,0.0001127,2]
[323281308,1713869432441,-542.45785,0.0001127,2]
[323281309,1713869432450,-1244.65634193,0.00011274,2]
[323281310,1713869432459,-220.66660495,0.00011275,2]
[323281311,1713869432468,-414.66,0.00011275,2]
[323281312,1713869432477,-734.7345577,0.00011275,2]
[323281313,1713869432488,-293.6154423,0.00011275,2]
[323281314,1713869432498,-332.26752027,0.00011275,2]
[323281315,1713869432524,-167.73247973,0.00011275,2]
[323281316,1713869432534,-367.9703,0.00011276,2]
[323281317,1713869432543,-53502.61656602,0.00011276,2]
[323281319,1713869438133,-3080.89024229,0.00011204,2]
[323281320,1713869438144,-500.0,0.00011275,2]
[323281321,1713869438154,-500.0,0.00011275,2]
[323281322,1713869438164,-12582.41613398,0.00011276,2]
[323281323,1713869438173,-103503.8329,0.00011276,2]
[323281324,1713869438183,-16815.7105,0.00011276,2]
[323281325,1713869438193,-22465.9491,0.00011276,2]
[323281326,1713869438203,-620.87,0.00011276,2]
[323281327,1713869438213,-2061.74,0.00011276,2]
[323281328,1713869438222,-500.0,0.00011276,2]
[323281329,1713869438231,-515.32,0.00011276,2]
[323281330,1713869438240,-500.0,0.00011276,2]
[323281331,1713869438249,-500.0,0.00011276,2]
[323281332,1713869438258,-4092.29,0.00011276,2]
[323281333,1713869438267,-5159.66,0.00011276,2]
[323281334,1713869438276,-500.0,0.00011276,2]
[323281335,1713869438285,-500.0,0.00011276,2]
[323281336,1713869438294,-500.0,0.00011276,2]
[323281337,1713869438303,-9136.0,0.00011276,2]
[323281338,1713869438313,-500.0,0.00011276,2]
[323281339,1713869438322,-1163.94,0.00011276,2]
[323281340,1713869438331,-1118.18,0.00011276,2]
[323281341,1713869438340,-3305.34,0.00011276,2]
[323281342,1713869438349,-500.0,0.00011276,2]
[323281343,1713869438358,-10373.77,0.00011276,2]
[323281344,1713869438367,-500.0,0.00011276,2]
[323281345,1713869438376,-5820.07,0.00011276,2]
[323281346,1713869438386,-500.0,0.00011276,2]
[323281347,1713869438394,-500.0,0.00011276,2]
[323281348,1713869438403,-1510.44537289,0.00011276,2]
[323281349,1713869438434,-140.54462711,0.00011276,2]
[323281350,1713869438443,-500.0,0.00011276,2]
[323281351,1713869438454,-500.0,0.00011276,2]
[323281352,1713869438463,-828.41,0.00011276,2]
[323281353,1713869438472,-20237.87048073,0.00011276,2]
[323281354,1713869438497,-4077.14185465,0.00011276,2]
[323281414,1713869440240,-1948.83,0.00011276,2]
[323281415,1713869440252,-4084.2532649,0.00011276,2]
[323281416,1713869440294,-5747.41157291,0.00011276,2]
[323281417,1713869440306,-2973.66282681,0.00011276,2]
[323281418,1713869440315,-497.69127045,0.00011276,2]
[323281419,1713869440324,-1977.90517674,0.00011276,2]
[323281420,1713869440669,-1722.46482326,0.00011276,2]
[323281421,1713869440680,-500.0,0.00011276,2]
[323281422,1713869440690,-500.0,0.00011276,2]
[323281423,1713869440699,-3759.63517673,0.00011277,2]
[323281448,1713869443248,-917.35,0.00011275,2]
[323281450,1713869443258,-2856.89,0.00011276,2]
[323281452,1713869443267,-6240.36482327,0.00011277,2]
[323281453,1713869443277,-721.25,0.00011277,2]
[323281454,1713869443286,-429.99848885,0.00011277,2]
[323281455,1713869443305,-13727.27412877,0.00011277,2]
[323281456,1713869443405,-3051.35738238,0.00011277,2]
[323281457,1713869443415,-172.48093964,0.00011277,2]
[323281458,1713869443424,-172.44193279,0.00011277,2]
[323281459,1713869443435,-6642.6736499,0.000113,2]
[323281460,1713869443445,-542.45786,0.0001131,2]
[323281461,1713869443454,-542.45785,0.0001135,2]
[323281462,1713869443464,-184.35869881,0.00011353,2]
[323281463,1713869443474,-500.0,0.00011362,2]
[323281464,1713869443483,-706.82,0.00011362,2]
[323281465,1713869443492,-975.45,0.00011362,2]
[323281466,1713869443501,-500.0,0.00011362,2]
[323281467,1713869443511,-534.63,0.00011362,2]
[323281468,1713869443519,-500.0,0.00011362,2]
[323281469,1713869443529,-501.39,0.00011362,2]
[323281470,1713869443538,-500.0,0.00011362,2]
[323281471,1713869443547,-500.0,0.00011362,2]
[323281472,1713869443556,-503.58412415,0.00011362,2]
[323281473,1713869443565,-500.0,0.00011362,2]
[323281474,1713869443574,-502.92718545,0.00011362,2]
[323281475,1713869443583,-500.0,0.00011362,2]
[323281476,1713869443592,-500.0,0.00011362,2]
[323281477,1713869443601,-500.0,0.00011362,2]
[323281478,1713869443611,-500.0,0.00011362,2]
[323281479,1713869443620,-500.0,0.00011362,2]
[323281480,1713869443629,-500.0,0.00011362,2]
[323281481,1713869443638,-502.32250162,0.00011362,2]
[323281482,1713869443647,-501.34016465,0.00011362,2]
[323281483,1713869443657,-500.0,0.00011362,2]
[323281484,1713869443666,-448.79363045,0.00011362,2]
[323281485,1713869443676,-500.0,0.00011362,2]
[323281486,1713869443685,-500.0,0.00011362,2]
[323281487,1713869443695,-500.0,0.00011362,2]
[323281488,1713869443704,-500.0,0.00011362,2]
[323281489,1713869443714,-500.0,0.00011362,2]
[323281490,1713869443723,-500.0,0.00011362,2]
[323281491,1713869443732,-500.0,0.00011362,2]
[323281492,1713869443741,-502.95101655,0.00011362,2]
[323281493,1713869443750,-1132.48,0.00011362,2]
[323281494,1713869443759,-500.0,0.00011362,2]
[323281495,1713869443769,-500.0,0.00011362,2]
[323281496,1713869443778,-500.0,0.00011362,2]
[323281497,1713869443787,-500.0,0.00011362,2]
[323281498,1713869443797,-500.0,0.00011362,2]
[323281499,1713869443806,-500.0,0.00011362,2]
[323281500,1713869443815,-1216.74,0.00011362,2]
[323281501,1713869443824,-1150.67,0.00011362,2]
[323281502,1713869443833,-500.0,0.00011362,2]
[323281503,1713869443842,-500.0,0.00011362,2]
[323281504,1713869443852,-500.0,0.00011362,2]
[323281505,1713869443861,-500.0,0.00011362,2]
[323281506,1713869443870,-500.0,0.00011362,2]
[323281507,1713869443880,-500.0,0.00011362,2]
[323281508,1713869443889,-500.0,0.00011362,2]
[323281509,1713869443899,-500.0,0.00011362,2]
[323281510,1713869443908,-500.0,0.00011362,2]
[323281511,1713869443917,-574.96461919,0.00011362,2]
[323281512,1713869443926,-500.0,0.00011362,2]
[323281513,1713869443936,-500.0,0.00011362,2]
[323281514,1713869443948,-500.0,0.00011362,2]
[323281515,1713869443958,-898.45,0.00011362,2]
[323281516,1713869443968,-500.0,0.00011362,2]
[323281517,1713869443977,-500.0,0.00011362,2]
[323281518,1713869443986,-500.0,0.00011362,2]
[323281519,1713869443995,-500.0,0.00011362,2]
[323281520,1713869444005,-500.0,0.00011362,2]
[323281521,1713869444014,-500.0,0.00011362,2]
[323281522,1713869444024,-506.89035017,0.00011362,2]
[323281523,1713869444033,-500.0,0.00011362,2]
[323281524,1713869444042,-549.67,0.00011362,2]
[323281525,1713869444052,-500.0,0.00011362,2]
[323281526,1713869444061,-689.68,0.00011362,2]
[323281527,1713869444070,-500.0,0.00011362,2]
[323281528,1713869444084,-500.0,0.00011362,2]
[323281529,1713869444094,-500.0,0.00011362,2]
[323281530,1713869444104,-500.0,0.00011362,2]
[323281531,1713869444113,-850.27,0.00011362,2]
[323281532,1713869444122,-500.0,0.00011362,2]
[323281533,1713869444131,-500.0,0.00011362,2]
[323281534,1713869444141,-1366.2,0.00011362,2]
[323281535,1713869444153,-500.0,0.00011362,2]
[323281536,1713869444163,-500.0,0.00011362,2]
[323281537,1713869444172,-1012.58,0.00011362,2]
[323281538,1713869444181,-150.0,0.00011362,2]
[323281539,1713869444190,-500.0,0.00011362,2]
[323281540,1713869444199,-506.88789594,0.00011362,2]
[323281541,1713869444209,-485.53135173,0.00011362,2]
[323281542,1713869444218,-958.89,0.00011362,2]
[323281543,1713869444228,-500.0,0.00011362,2]
[323281544,1713869444237,-500.0,0.00011362,2]
[323281545,1713869444247,-621.16623162,0.00011362,2]
[323281546,1713869444256,-1257.01,0.00011362,2]
[323281547,1713869444265,-500.0,0.00011362,2]
[323281548,1713869444274,-500.0,0.00011362,2]
[323281549,1713869444283,-500.0,0.00011362,2]
[323281550,1713869444292,-6032.96,0.00011362,2]
[323281551,1713869444301,-611.81012403,0.00011362,2]
[323281552,1713869444311,-500.0,0.00011362,2]
[323281553,1713869444320,-450.68402175,0.00011362,2]
[323281554,1713869444329,-500.0,0.00011362,2]
[323281555,1713869444338,-288.81471377,0.00011362,2]
[323281556,1713869444347,-952.11,0.00011362,2]
[323281557,1713869444356,-2604.96,0.00011362,2]
[323281558,1713869444366,-500.0,0.00011362,2]
[323281559,1713869444375,-500.0,0.00011362,2]
[323281560,1713869444385,-838.76,0.00011362,2]
[323281561,1713869444394,-632.08477396,0.00011362,2]
[323281562,1713869444404,-500.0,0.00011362,2]
[323281563,1713869444414,-1080.56,0.00011362,2]
[323281564,1713869444424,-555.44,0.00011362,2]
[323281565,1713869444434,-500.0,0.00011362,2]
[323281566,1713869444443,-500.0,0.00011362,2]
[323281567,1713869444453,-2172.79,0.00011362,2]
[323281568,1713869444463,-500.0,0.00011362,2]
[323281569,1713869444474,-500.0,0.00011362,2]
[323281570,1713869444482,-500.0,0.00011362,2]
[323281571,1713869444492,-4903.77,0.00011362,2]
[323281572,1713869444501,-500.0,0.00011362,2]
[323281573,1713869444510,-500.0,0.00011362,2]
[323281574,1713869444519,-500.0,0.00011362,2]
[323281575,1713869444528,-1073.81,0.00011362,2]
[323281576,1713869444537,-500.0,0.00011362,2]
[323281577,1713869444546,-500.0,0.00011362,2]
[323281578,1713869444555,-792.62,0.00011362,2]
[323281579,1713869444565,-500.0,0.00011362,2]
[323281580,1713869444574,-500.0,0.00011362,2]
[323281581,1713869444583,-2451.37,0.00011362,2]
[323281582,1713869444592,-500.0,0.00011362,2]
[323281583,1713869444604,-208.65042021,0.00011362,2]
[323281584,1713869444613,-630.60210235,0.00011362,2]
[323281585,1713869444622,-500.0,0.00011362,2]
[323281586,1713869444632,-500.0,0.00011362,2]
[323281587,1713869444641,-500.0,0.00011362,2]
[323281588,1713869444651,-500.0,0.00011362,2]
[323281589,1713869444660,-9997.2,0.00011362,2]
[323281590,1713869444669,-500.0,0.00011362,2]
[323281591,1713869444678,-500.0,0.00011362,2]
[323281592,1713869444687,-500.0,0.00011362,2]
[323281593,1713869444696,-1601.05,0.00011362,2]
[323281594,1713869444705,-500.0,0.00011362,2]
[323281595,1713869444715,-870.05,0.00011362,2]
[323281596,1713869444724,-500.0,0.00011362,2]
[323281597,1713869444734,-514.15,0.00011362,2]
[323281598,1713869444743,-500.0,0.00011362,2]
[323281599,1713869444752,-500.0,0.00011362,2]
[323281600,1713869444762,-500.0,0.00011362,2]
[323281601,1713869444771,-500.0,0.00011362,2]
[323281602,1713869444780,-1095.48,0.00011362,2]
[323281603,1713869444789,-500.0,0.00011362,2]
[323281604,1713869444799,-526.14,0.00011362,2]
[323281605,1713869444808,-500.0,0.00011362,2]
[323281606,1713869444817,-500.0,0.00011362,2]
[323281607,1713869444826,-555.92,0.00011362,2]
[323281608,1713869444835,-3491.08,0.00011362,2]
[323281609,1713869444845,-26852.52,0.00011362,2]
[323281610,1713869444855,-630.12768889,0.00011362,2]
[323281611,1713869444864,-500.0,0.00011362,2]
[323281612,1713869444874,-500.0,0.00011362,2]
[323281613,1713869444884,-500.0,0.00011362,2]
[323281614,1713869444893,-500.0,0.00011362,2]
[323281615,1713869444903,-500.0,0.00011362,2]
[323281616,1713869444913,-500.0,0.00011362,2]
[323281617,1713869444922,-500.0,0.00011362,2]
[323281618,1713869444932,-929.21,0.00011362,2]
[323281619,1713869444947,-500.0,0.00011362,2]
[323281620,1713869444956,-516.74,0.00011362,2]
[323281621,1713869444967,-500.0,0.00011362,2]
[323281622,1713869444976,-500.0,0.00011362,2]
[323281623,1713869444986,-500.0,0.00011362,2]
[323281624,1713869444996,-745.71,0.00011362,2]
[323281625,1713869445006,-500.0,0.00011362,2]
[323281626,1713869445018,-500.0,0.00011362,2]
[323281627,1713869445029,-49465.21,0.00011362,2]
[323281628,1713869445039,-892.35,0.00011362,2]
[323281629,1713869445049,-10483.97005436,0.00011363,2]
[323281630,1713869445060,-500.0,0.00011363,2]
[323281631,1713869445070,-680.87,0.00011363,2]
[323281632,1713869445079,-502.86077699,0.00011363,2]
[323281633,1713869445088,-505.22160594,0.00011363,2]
[323281634,1713869445098,-504.2192653,0.00011363,2]
[323281635,1713869445110,-500.0,0.00011363,2]
[323281636,1713869445120,-500.0,0.00011363,2]
[323281637,1713869445129,-500.0,0.00011363,2]
[323281638,1713869445139,-498.3639751,0.00011363,2]
[323281639,1713869445148,-500.0,0.00011363,2]
[323281640,1713869445158,-1591.37,0.00011363,2]
[323281641,1713869445169,-500.0,0.00011363,2]
[323281642,1713869445179,-501.75128079,0.00011363,2]
[323281643,1713869445188,-500.0,0.00011363,2]
[323281644,1713869445197,-1033.97,0.00011363,2]
[323281645,1713869445206,-500.0,0.00011363,2]
[323281646,1713869445216,-500.0,0.00011363,2]
[323281647,1713869445226,-500.0,0.00011363,2]
[323281648,1713869445235,-504.30162004,0.00011363,2]
[323281649,1713869445244,-500.0,0.00011363,2]
[323281650,1713869445255,-946.9,0.00011363,2]
[323281651,1713869445265,-500.0,0.00011363,2]
[323281652,1713869445274,-304.26435674,0.00011363,2]
[323281653,1713869445284,-503.71363099,0.00011363,2]
[323281654,1713869445293,-500.0,0.00011363,2]
[323281655,1713869445303,-500.0,0.00011363,2]
[323281656,1713869445312,-500.0,0.00011363,2]
[323281657,1713869445323,-500.0,0.00011363,2]
[323281658,1713869445333,-500.0,0.00011363,2]
[323281659,1713869445342,-282.75938724,0.00011363,2]
[323281660,1713869445351,-500.0,0.00011363,2]
[323281661,1713869445360,-500.0,0.00011363,2]
[323281662,1713869445369,-500.0,0.00011363,2]
[323281663,1713869445378,-434.96418336,0.00011363,2]
[323281664,1713869445387,-500.0,0.00011363,2]
[323281665,1713869445396,-500.0,0.00011363,2]
[323281666,1713869445405,-500.0,0.00011363,2]
[323281667,1713869445414,-500.0,0.00011363,2]
[323281668,1713869445423,-500.0,0.00011363,2]
[323281669,1713869445433,-500.0,0.00011363,2]
[323281670,1713869445442,-500.0,0.00011363,2]
[323281671,1713869445451,-1005.13,0.00011363,2]
[323281672,1713869445461,-500.0,0.00011363,2]
[323281673,1713869445470,-500.0,0.00011363,2]
[323281674,1713869445478,-500.0,0.00011363,2]
[323281675,1713869445488,-500.0,0.00011363,2]
[323281676,1713869445497,-500.0,0.00011363,2]
[323281677,1713869445507,-500.0,0.00011363,2]
[323281678,1713869445516,-500.0,0.00011363,2]
[323281679,1713869445526,-863.25,0.00011363,2]
[323281680,1713869445538,-503.09816844,0.00011363,2]
[323281681,1713869445547,-500.0,0.00011363,2]
[323281682,1713869445556,-500.0,0.00011363,2]
[323281683,1713869445565,-504.73647205,0.00011363,2]
[323281684,1713869445575,-500.0,0.00011363,2]
[323281685,1713869445584,-500.0,0.00011363,2]
[323281686,1713869445593,-500.0,0.00011363,2]
[323281687,1713869445602,-500.0,0.00011363,2]
[323281688,1713869445611,-500.0,0.00011363,2]
[323281689,1713869445620,-500.0,0.00011363,2]
[323281690,1713869445629,-500.0,0.00011363,2]
[323281691,1713869445638,-500.0,0.00011363,2]
[323281692,1713869445648,-500.0,0.00011363,2]
[323281693,1713869445657,-500.0,0.00011363,2]
[323281694,1713869445666,-500.0,0.00011363,2]
[323281695,1713869445676,-500.0,0.00011363,2]
[323281696,1713869445685,-527.3631521,0.00011363,2]
[323281697,1713869445693,-500.0,0.00011363,2]
[323281698,1713869445702,-500.0,0.00011363,2]
[323281699,1713869445713,-500.0,0.00011363,2]
[323281700,1713869445722,-500.0,0.00011363,2]
[323281701,1713869445732,-500.0,0.00011363,2]
[323281702,1713869445742,-552.81,0.00011363,2]
[323281703,1713869445751,-500.0,0.00011363,2]
[323281704,1713869445761,-504.91672357,0.00011363,2]
[323281705,1713869445770,-624.96617444,0.00011363,2]
[323281706,1713869445780,-500.0,0.00011363,2]
[323281707,1713869445789,-500.0,0.00011363,2]
[323281708,1713869445799,-933.88,0.00011363,2]
[323281709,1713869445809,-500.0,0.00011363,2]
[323281710,1713869445818,-505.26171624,0.00011363,2]
[323281711,1713869445828,-500.0,0.00011363,2]
[323281712,1713869445837,-500.0,0.00011363,2]
[323281713,1713869445847,-500.0,0.00011363,2]
[323281714,1713869445856,-500.0,0.00011363,2]
[323281715,1713869445866,-500.0,0.00011363,2]
[323281716,1713869445875,-500.0,0.00011363,2]
[323281717,1713869445885,-501.98197262,0.00011363,2]
[323281718,1713869445896,-529.88033474,0.00011363,2]
[323281719,1713869445906,-500.0,0.00011363,2]
[323281721,1713869445914,-421.95552954,0.00011363,2]
[323281722,1713869445923,-500.0,0.00011363,2]
[323281723,1713869445933,-500.0,0.00011363,2]
[323281724,1713869445945,-500.0,0.00011363,2]
[323281725,1713869445954,-500.0,0.00011363,2]
[323281726,1713869445969,-555.3901913,0.00011363,2]
[323281729,1713869445979,-500.0,0.00011363,2]
[323281731,1713869445990,-500.0,0.00011363,2]
[323281732,1713869446000,-503.91555752,0.00011363,2]
[323281733,1713869446011,-501.21823171,0.00011363,2]
[323281734,1713869446022,-500.0,0.00011363,2]
[323281735,1713869446033,-500.0,0.00011363,2]
[323281737,1713869446042,-502.36814552,0.00011363,2]
[323281739,1713869446052,-500.0,0.00011363,2]
[323281740,1713869446062,-500.0,0.00011363,2]
[323281741,1713869446072,-667.68,0.00011363,2]
[323281742,1713869446082,-500.0,0.00011363,2]
[323281743,1713869446091,-500.0,0.00011363,2]
[323281744,1713869446101,-500.0,0.00011363,2]
[323281745,1713869446110,-528.91,0.00011363,2]
[323281747,1713869446120,-500.0,0.00011363,2]
[323281749,1713869446129,-500.0,0.00011363,2]
[323281750,1713869446138,-501.08256497,0.00011363,2]
[323281751,1713869446148,-1481.27,0.00011363,2]
[323281752,1713869446157,-501.86128044,0.00011363,2]
[323281753,1713869446167,-328.60425986,0.00011363,2]
[323281754,1713869446175,-518.88124678,0.00011363,2]
[323281755,1713869446183,-502.42167712,0.00011363,2]
[323281756,1713869446192,-500.0,0.00011363,2]
[323281757,1713869446201,-500.0,0.00011363,2]
[323281758,1713869446210,-500.90250241,0.00011363,2]
[323281759,1713869446219,-504.09832341,0.00011363,2]
[323281760,1713869446229,-615.23689345,0.00011363,2]
[323281761,1713869446238,-500.0,0.00011363,2]
[323281762,1713869446247,-500.0,0.00011363,2]
[323281763,1713869446256,-500.0,0.00011363,2]
[323281764,1713869446266,-500.0,0.00011363,2]
[323281765,1713869446275,-500.0,0.00011363,2]
[323281766,1713869446284,-506.47935853,0.00011363,2]
[323281767,1713869446293,-501.14815085,0.00011363,2]
[323281768,1713869446302,-503.32350494,0.00011363,2]